[Event "January 9 Early 2024"]
[Site "https://www.chess.com"]
[Date "2024.01.11"]
[Round "5"]
[White "Kashtanov, Ruslan"]
[Black "Piesik, Piotr"]
[Result "1-0"]
[Board "147"]
[TimeControl "180+1"]
[WhiteFideId "4124871"]
[BlackFideId "1136194"]
[WhiteElo "2506"]
[BlackElo "2660"]
[WhiteTeam "RUS"]
[BlackTeam "CZE"]
[WhiteClock "0:00:17"]
[BlackClock "0:01:10"]

1. e4 {[%clk 0:03:00]}  g6 {[%clk 0:02:57]} 2. d4 {[%clk 0:03:00]}  Bg7 {[%clk 0:02:57]} 3. Nc3 {[%clk 0:03:00]}  c6 {[%clk 0:02:58]} 4. Nf3 {[%clk 0:02:58]}  d6 {[%clk 0:02:58]} 5. h3 {[%clk 0:02:55]}  Nf6 {[%clk 0:02:58]} 6. Be3 {[%clk 0:02:53]}  O-O {[%clk 0:02:58]} 7. Qd2 {[%clk 0:02:51]}  b5 {[%clk 0:02:58]} 8. Bd3 {[%clk 0:02:51]}  b4 {[%clk 0:02:58]} 9. Ne2 {[%clk 0:02:51]}  a5 {[%clk 0:02:58]} 10. Bh6 {[%clk 0:02:45]}  Ba6 {[%clk 0:02:57]} 11. Bxg7 {[%clk 0:02:43]}  Kxg7 {[%clk 0:02:58]} 12. Ng3 {[%clk 0:02:32]}  Bxd3 {[%clk 0:02:55]} 13. cxd3 {[%clk 0:02:31]}  Nbd7 {[%clk 0:02:52]} 14. Rc1 {[%clk 0:02:25]}  Rc8 {[%clk 0:02:49]} 15. Qg5 {[%clk 0:02:18]}  Kh8 {[%clk 0:02:47]} 16. Qh6 {[%clk 0:02:16]}  Ng8 {[%clk 0:02:47]} 17. Qh4 {[%clk 0:02:16]}  e5 {[%clk 0:02:46]} 18. Qxd8 {[%clk 0:01:48]}  Rfxd8 {[%clk 0:02:47]} 19. Ke2 {[%clk 0:01:46]}  Kg7 {[%clk 0:02:39]} 20. dxe5 {[%clk 0:01:44]}  Nxe5 {[%clk 0:02:35]} 21. Nxe5 {[%clk 0:01:42]}  dxe5 {[%clk 0:02:36]} 22. Rc5 {[%clk 0:01:43]}  f6 {[%clk 0:02:30]} 23. Rhc1 {[%clk 0:01:42]}  Ne7 {[%clk 0:02:30]} 24. Rxa5 {[%clk 0:01:42]}  Ra8 {[%clk 0:02:30]} 25. Rcc5 {[%clk 0:01:42]}  Kf7 {[%clk 0:02:29]} 26. Nf1 {[%clk 0:01:40]}  Ke6 {[%clk 0:02:28]} 27. Ne3 {[%clk 0:01:40]}  Rdb8 {[%clk 0:02:24]} 28. Nc4 {[%clk 0:01:25]}  Rxa5 {[%clk 0:02:21]} 29. Rxa5 {[%clk 0:01:25]}  Rb7 {[%clk 0:02:16]} 30. h4 {[%clk 0:01:21]}  Nc8 {[%clk 0:02:08]} 31. Rc5 {[%clk 0:01:15]}  Kd7 {[%clk 0:02:07]} 32. Ra5 {[%clk 0:01:12]}  Nd6 {[%clk 0:02:05]} 33. b3 {[%clk 0:00:50]}  Nb5 {[%clk 0:02:04]} 34. Ke3 {[%clk 0:00:48]}  Nc3 {[%clk 0:02:00]} 35. f4 {[%clk 0:00:44]}  exf4+ {[%clk 0:01:59]} 36. Kxf4 {[%clk 0:00:44]}  Ke6 {[%clk 0:01:54]} 37. Ra6 {[%clk 0:00:40]}  Rc7 {[%clk 0:01:46]} 38. d4 {[%clk 0:00:35]}  Ke7 {[%clk 0:01:45]} 39. g4 {[%clk 0:00:33]}  Ne2+ {[%clk 0:01:38]} 40. Ke3 {[%clk 0:00:32]}  Nc3 {[%clk 0:01:39]} 41. g5 {[%clk 0:00:30]}  fxg5 {[%clk 0:01:37]} 42. hxg5 {[%clk 0:00:31]}  Kd7 {[%clk 0:01:36]} 43. Ne5+ {[%clk 0:00:31]}  Kd6 {[%clk 0:01:36]} 44. Nd3 {[%clk 0:00:28]}  Rb7 {[%clk 0:01:34]} 45. e5+ {[%clk 0:00:27]}  Kc7 {[%clk 0:01:32]} 46. Nc5 {[%clk 0:00:25]}  Nd5+ {[%clk 0:01:30]} 47. Ke4 {[%clk 0:00:23]}  Rb8 {[%clk 0:01:27]} 48. Ra7+ {[%clk 0:00:23]}  Kb6 {[%clk 0:01:26]} 49. Rxh7 {[%clk 0:00:22]}  Ra8 {[%clk 0:01:27]} 50. Na4+ {[%clk 0:00:20]}  Kb5 {[%clk 0:01:23]} 51. e6 {[%clk 0:00:20]}  Nc3+ {[%clk 0:01:18]} 52. Ke5 {[%clk 0:00:20]}  Nxa4 {[%clk 0:01:18]} 53. bxa4+ {[%clk 0:00:21]}  Rxa4 {[%clk 0:01:15]} 54. e7 {[%clk 0:00:19]}  Rxa2 {[%clk 0:01:15]} 55. Kd6 {[%clk 0:00:18]}  Re2 {[%clk 0:01:14]} 56. Rh8 {[%clk 0:00:17]}  Kc4 {[%clk 0:01:10]} 57. e8=Q {[%clk 0:00:16]}  Rxe8 {[%clk 0:01:09]} 58. Rxe8 {[%clk 0:00:16]}  Kxd4 {[%clk 0:01:09]} 59. Kxc6 {[%clk 0:00:17]}  b3 {[%clk 0:01:10]} 60. Rb8 {[%clk 0:00:17]}  Kc3 {[%clk 0:01:10]} 61. Kd6 {[%clk 0:00:17]} 1-0

[Event "January 9 Early 2024"]
[Site "https://www.chess.com"]
[Date "2024.01.11"]
[Round "5"]
[White "Pogorelskikh, Sofia"]
[Black "Poddubnyi, Viktor"]
[Result "0-1"]
[Board "148"]
[TimeControl "180+1"]
[WhiteFideId "44164548"]
[BlackFideId "4141989"]
[WhiteElo "2274"]
[BlackElo "2430"]
[WhiteTeam "SRB"]
[BlackTeam "RUS"]
[WhiteClock "0:00:03"]
[BlackClock "0:00:43"]

1. e4 {[%clk 0:03:00]}  g6 {[%clk 0:03:00]} 2. d4 {[%clk 0:02:57]}  Bg7 {[%clk 0:03:00]} 3. Nc3 {[%clk 0:02:54]}  d6 {[%clk 0:03:01]} 4. Be3 {[%clk 0:02:48]}  a6 {[%clk 0:03:01]} 5. Qd2 {[%clk 0:02:46]}  b5 {[%clk 0:03:02]} 6. a3 {[%clk 0:02:39]}  Bb7 {[%clk 0:03:02]} 7. h4 {[%clk 0:02:35]}  h5 {[%clk 0:03:01]} 8. f3 {[%clk 0:02:11]}  Nf6 {[%clk 0:03:01]} 9. Nh3 {[%clk 0:02:08]}  Nbd7 {[%clk 0:03:01]} 10. Ng5 {[%clk 0:02:07]}  e6 {[%clk 0:03:02]} 11. Be2 {[%clk 0:01:27]}  Qe7 {[%clk 0:03:02]} 12. O-O-O {[%clk 0:01:18]}  Nb6 {[%clk 0:02:45]} 13. Kb1 {[%clk 0:00:38]}  O-O-O {[%clk 0:02:30]} 14. g4 {[%clk 0:00:37]}  c5 {[%clk 0:02:24]} 15. Qe1 {[%clk 0:00:18]}  hxg4 {[%clk 0:01:32]} 16. fxg4 {[%clk 0:00:18]}  b4 {[%clk 0:01:33]} 17. axb4 {[%clk 0:00:17]}  cxb4 {[%clk 0:01:33]} 18. Na2 {[%clk 0:00:17]}  Nxe4 {[%clk 0:01:31]} 19. Bf3 {[%clk 0:00:16]}  Nxg5 {[%clk 0:01:26]} 20. Bxb7+ {[%clk 0:00:16]}  Qxb7 {[%clk 0:01:23]} 21. Bxg5 {[%clk 0:00:16]}  Rd7 {[%clk 0:01:13]} 22. Qxb4 {[%clk 0:00:12]}  Kb8 {[%clk 0:01:11]} 23. Bf4 {[%clk 0:00:11]}  Nd5 {[%clk 0:01:06]} 24. Qxb7+ {[%clk 0:00:10]}  Kxb7 {[%clk 0:01:07]} 25. Bd2 {[%clk 0:00:10]}  Bxd4 {[%clk 0:01:06]} 26. Nb4 {[%clk 0:00:06]}  Nxb4 {[%clk 0:01:03]} 27. Bxb4 {[%clk 0:00:07]}  Be5 {[%clk 0:01:04]} 28. h5 {[%clk 0:00:06]}  gxh5 {[%clk 0:01:04]} 29. gxh5 {[%clk 0:00:06]}  f5 {[%clk 0:00:59]} 30. Rdg1 {[%clk 0:00:05]}  Rdh7 {[%clk 0:00:57]} 31. Rg6 {[%clk 0:00:05]}  Rh6 {[%clk 0:00:56]} 32. Rg7+ {[%clk 0:00:05]}  Kc6 {[%clk 0:00:56]} 33. Ra7 {[%clk 0:00:04]}  Kb6 {[%clk 0:00:55]} 34. Rd7 {[%clk 0:00:04]}  Rxh5 {[%clk 0:00:46]} 35. Rd1 {[%clk 0:00:03]}  Rh1 {[%clk 0:00:43]} 36. Kc1 {[%clk 0:00:02]}  Bf4+ {[%clk 0:00:42]} 37. Bd2 {[%clk 0:00:02]}  Rxd1+ {[%clk 0:00:42]} 38. Kxd1 {[%clk 0:00:03]}  Rh1+ {[%clk 0:00:42]} 39. Be1 {[%clk 0:00:03]}  Bg3 {[%clk 0:00:43]} 0-1

[Event "January 9 Early 2024"]
[Site "https://www.chess.com"]
[Date "2024.01.11"]
[Round "5"]
[White "Gonzalez Vega, Alejandro"]
[Black "Vila Dupla, Aurelio"]
[Result "1-0"]
[Board "149"]
[TimeControl "180+1"]
[WhiteFideId "3510042"]
[BlackFideId "2203383"]
[WhiteElo "2270"]
[BlackElo "2171"]
[WhiteTeam "CUB"]
[BlackTeam "ESP"]
[WhiteClock "0:00:21"]
[BlackClock "0:00:02"]

1. e4 {[%clk 0:03:00]}  c5 {[%clk 0:02:59]} 2. Nf3 {[%clk 0:02:57]}  d6 {[%clk 0:02:59]} 3. d4 {[%clk 0:02:55]}  cxd4 {[%clk 0:02:58]} 4. c3 {[%clk 0:02:56]}  dxc3 {[%clk 0:02:57]} 5. Nxc3 {[%clk 0:02:56]}  Nc6 {[%clk 0:02:57]} 6. Bc4 {[%clk 0:02:55]}  e6 {[%clk 0:02:57]} 7. O-O {[%clk 0:02:53]}  a6 {[%clk 0:02:57]} 8. Qe2 {[%clk 0:02:52]}  Be7 {[%clk 0:02:57]} 9. Rd1 {[%clk 0:02:52]}  Bd7 {[%clk 0:02:57]} 10. Bf4 {[%clk 0:02:50]}  e5 {[%clk 0:02:57]} 11. Be3 {[%clk 0:02:48]}  Nf6 {[%clk 0:02:55]} 12. h3 {[%clk 0:02:47]}  O-O {[%clk 0:02:55]} 13. Rac1 {[%clk 0:02:47]}  b5 {[%clk 0:02:55]} 14. Bb3 {[%clk 0:02:46]}  Na5 {[%clk 0:02:52]} 15. Bc2 {[%clk 0:02:38]}  Qb8 {[%clk 0:02:29]} 16. Bb1 {[%clk 0:01:48]}  Be6 {[%clk 0:02:26]} 17. b3 {[%clk 0:01:47]}  b4 {[%clk 0:02:20]} 18. Nd5 {[%clk 0:01:47]}  Bxd5 {[%clk 0:01:49]} 19. exd5 {[%clk 0:01:47]}  Rc8 {[%clk 0:01:45]} 20. Rxc8+ {[%clk 0:01:29]}  Qxc8 {[%clk 0:01:45]} 21. Nh2 {[%clk 0:01:25]}  Qb7 {[%clk 0:01:30]} 22. Ng4 {[%clk 0:01:15]}  Nxg4 {[%clk 0:01:20]} 23. Qxg4 {[%clk 0:01:12]}  Rc8 {[%clk 0:01:13]} 24. h4 {[%clk 0:01:10]}  Bf8 {[%clk 0:00:46]} 25. h5 {[%clk 0:01:10]}  Qb8 {[%clk 0:00:41]} 26. Bh6 {[%clk 0:00:56]}  g6 {[%clk 0:00:27]} 27. Bd2 {[%clk 0:00:46]}  Nb7 {[%clk 0:00:15]} 28. hxg6 {[%clk 0:00:40]}  hxg6 {[%clk 0:00:14]} 29. Bxb4 {[%clk 0:00:38]}  Nc5 {[%clk 0:00:14]} 30. Bd2 {[%clk 0:00:34]}  Qc7 {[%clk 0:00:11]} 31. Rc1 {[%clk 0:00:32]}  Rd8 {[%clk 0:00:04]} 32. b4 {[%clk 0:00:30]}  Qd7 {[%clk 0:00:05]} 33. Qc4 {[%clk 0:00:23]}  Nb7 {[%clk 0:00:04]} 34. Qxa6 {[%clk 0:00:23]}  Rb8 {[%clk 0:00:03]} 35. Qc6 {[%clk 0:00:22]}  Qxc6 {[%clk 0:00:02]} 36. dxc6 {[%clk 0:00:21]} 1-0

[Event "January 9 Early 2024"]
[Site "https://www.chess.com"]
[Date "2024.01.11"]
[Round "5"]
[White "Joie, Sebastien"]
[Black "Latreche, Khadidja"]
[Result "0-1"]
[Board "151"]
[TimeControl "180+1"]
[WhiteFideId "650420"]
[BlackFideId "7901780"]
[WhiteElo "2436"]
[BlackElo "2144"]
[WhiteTeam "FRA"]
[BlackTeam "ALG"]
[WhiteClock "0:00:01"]
[BlackClock "0:00:23"]

1. d4 {[%clk 0:03:00]}  Nf6 {[%clk 0:02:40]} 2. c4 {[%clk 0:02:59]}  d6 {[%clk 0:02:39]} 3. Nc3 {[%clk 0:02:59]}  Nbd7 {[%clk 0:02:39]} 4. e4 {[%clk 0:02:59]}  e5 {[%clk 0:02:40]} 5. d5 {[%clk 0:03:00]}  c6 {[%clk 0:02:39]} 6. Bd3 {[%clk 0:02:59]}  Qc7 {[%clk 0:02:39]} 7. Nge2 {[%clk 0:02:56]}  g6 {[%clk 0:02:40]} 8. O-O {[%clk 0:02:56]}  Bg7 {[%clk 0:02:38]} 9. Ng3 {[%clk 0:02:52]}  cxd5 {[%clk 0:02:36]} 10. cxd5 {[%clk 0:02:36]}  a6 {[%clk 0:02:35]} 11. f4 {[%clk 0:02:25]}  exf4 {[%clk 0:02:33]} 12. Bxf4 {[%clk 0:02:24]}  O-O {[%clk 0:02:31]} 13. Kh1 {[%clk 0:02:13]}  Nc5 {[%clk 0:02:28]} 14. Be2 {[%clk 0:02:04]}  Qb6 {[%clk 0:02:26]} 15. e5 {[%clk 0:01:57]}  dxe5 {[%clk 0:02:20]} 16. Bxe5 {[%clk 0:01:58]}  Re8 {[%clk 0:02:18]} 17. Bd4 {[%clk 0:01:47]}  Qd6 {[%clk 0:01:58]} 18. b4 {[%clk 0:01:19]}  Nce4 {[%clk 0:01:49]} 19. Ngxe4 {[%clk 0:01:04]}  Nxe4 {[%clk 0:01:48]} 20. Bxg7 {[%clk 0:00:37]}  Kxg7 {[%clk 0:01:48]} 21. Nxe4 {[%clk 0:00:19]}  Rxe4 {[%clk 0:01:47]} 22. Bf3 {[%clk 0:00:19]}  Rxb4 {[%clk 0:01:44]} 23. Qd2 {[%clk 0:00:15]}  Bf5 {[%clk 0:01:36]} 24. Rae1 {[%clk 0:00:08]}  Rc8 {[%clk 0:01:29]} 25. Qg5 {[%clk 0:00:04]}  f6 {[%clk 0:01:22]} 26. Qe3 {[%clk 0:00:04]}  Rc7 {[%clk 0:01:16]} 27. Re2 {[%clk 0:00:04]}  Qf4 {[%clk 0:01:02]} 28. Qe8 {[%clk 0:00:02]}  Qd6 {[%clk 0:00:57]} 29. Rfe1 {[%clk 0:00:03]}  Rb1 {[%clk 0:00:35]} 30. Rxb1 {[%clk 0:00:02]}  Bxb1 {[%clk 0:00:34]} 31. g3 {[%clk 0:00:02]}  Bd3 {[%clk 0:00:29]} 32. Re3 {[%clk 0:00:02]}  Rc1+ {[%clk 0:00:27]} 33. Kg2 {[%clk 0:00:02]}  Rc2+ {[%clk 0:00:24]} 34. Kh3 {[%clk 0:00:03]}  Bf1+ {[%clk 0:00:24]} 35. Kg4 {[%clk 0:00:01]}  h5+ {[%clk 0:00:23]} 0-1

[Event "January 9 Early 2024"]
[Site "https://www.chess.com"]
[Date "2024.01.11"]
[Round "5"]
[White "Arun, Siddharth"]
[Black "Kuhn, Clement"]
[Result "0-1"]
[Board "153"]
[TimeControl "180+1"]
[WhiteFideId "2079178"]
[BlackFideId "36099775"]
[WhiteElo "2317"]
[BlackElo "2568"]
[WhiteTeam "USA"]
[BlackTeam "FRA"]
[WhiteClock "0:00:10"]
[BlackClock "0:00:35"]

1. d4 {[%clk 0:03:00]}  Nf6 {[%clk 0:02:57]} 2. Nc3 {[%clk 0:03:00]}  d5 {[%clk 0:02:55]} 3. Bf4 {[%clk 0:03:00]}  g6 {[%clk 0:02:50]} 4. e3 {[%clk 0:03:00]}  Bg7 {[%clk 0:02:49]} 5. Nb5 {[%clk 0:02:59]}  Na6 {[%clk 0:02:47]} 6. h3 {[%clk 0:02:59]}  O-O {[%clk 0:02:44]} 7. Be2 {[%clk 0:02:57]}  c6 {[%clk 0:02:44]} 8. Nc3 {[%clk 0:02:57]}  Nc7 {[%clk 0:02:45]} 9. Nf3 {[%clk 0:02:56]}  Ne6 {[%clk 0:02:44]} 10. Be5 {[%clk 0:02:57]}  Nd7 {[%clk 0:02:44]} 11. Bxg7 {[%clk 0:02:56]}  Kxg7 {[%clk 0:02:45]} 12. O-O {[%clk 0:02:54]}  f5 {[%clk 0:02:45]} 13. b4 {[%clk 0:02:47]}  Qc7 {[%clk 0:02:33]} 14. Qd3 {[%clk 0:02:42]}  h6 {[%clk 0:01:54]} 15. a4 {[%clk 0:02:35]}  Ng5 {[%clk 0:01:53]} 16. Nxg5 {[%clk 0:02:34]}  hxg5 {[%clk 0:01:54]} 17. f4 {[%clk 0:02:33]}  gxf4 {[%clk 0:01:53]} 18. Rxf4 {[%clk 0:02:29]}  e5 {[%clk 0:01:52]} 19. dxe5 {[%clk 0:02:23]}  Qxe5 {[%clk 0:01:51]} 20. Raf1 {[%clk 0:02:19]}  Nf6 {[%clk 0:01:50]} 21. Qd4 {[%clk 0:02:04]}  Qxd4 {[%clk 0:01:47]} 22. exd4 {[%clk 0:02:03]}  Bd7 {[%clk 0:01:46]} 23. g4 {[%clk 0:01:59]}  g5 {[%clk 0:01:44]} 24. R4f2 {[%clk 0:01:51]}  fxg4 {[%clk 0:01:43]} 25. hxg4 {[%clk 0:01:46]}  Nxg4 {[%clk 0:01:39]} 26. Bxg4 {[%clk 0:01:25]}  Bxg4 {[%clk 0:01:35]} 27. b5 {[%clk 0:01:13]}  Rxf2 {[%clk 0:01:19]} 28. Rxf2 {[%clk 0:01:13]}  Kg6 {[%clk 0:01:16]} 29. a5 {[%clk 0:01:08]}  Rc8 {[%clk 0:00:58]} 30. b6 {[%clk 0:00:59]}  axb6 {[%clk 0:00:55]} 31. axb6 {[%clk 0:00:59]}  Ra8 {[%clk 0:00:56]} 32. Rg2 {[%clk 0:00:56]}  Bf5 {[%clk 0:00:55]} 33. Re2 {[%clk 0:00:56]}  Ra6 {[%clk 0:00:55]} 34. Re7 {[%clk 0:00:24]}  Rxb6 {[%clk 0:00:54]} 35. Na4 {[%clk 0:00:24]}  Rb1+ {[%clk 0:00:53]} 36. Kf2 {[%clk 0:00:23]}  Bxc2 {[%clk 0:00:53]} 37. Nc5 {[%clk 0:00:23]}  b6 {[%clk 0:00:48]} 38. Nd7 {[%clk 0:00:23]}  b5 {[%clk 0:00:38]} 39. Re6+ {[%clk 0:00:22]}  Kf7 {[%clk 0:00:36]} 40. Rxc6 {[%clk 0:00:21]}  Be4 {[%clk 0:00:35]} 41. Ne5+ {[%clk 0:00:21]}  Kg7 {[%clk 0:00:36]} 42. Kg3 {[%clk 0:00:20]}  b4 {[%clk 0:00:35]} 43. Kg4 {[%clk 0:00:16]}  b3 {[%clk 0:00:36]} 44. Kxg5 {[%clk 0:00:12]}  Rg1+ {[%clk 0:00:36]} 45. Kf4 {[%clk 0:00:11]}  b2 {[%clk 0:00:36]} 46. Rc7+ {[%clk 0:00:11]}  Kf6 {[%clk 0:00:35]} 47. Rf7+ {[%clk 0:00:10]}  Ke6 {[%clk 0:00:35]} 0-1

[Event "January 9 Early 2024"]
[Site "https://www.chess.com"]
[Date "2024.01.11"]
[Round "5"]
[White "Sailer, Mike"]
[Black "Kuznecova, Marija"]
[Result "1-0"]
[Board "154"]
[TimeControl "180+1"]
[WhiteFideId "2012901"]
[BlackFideId "11618736"]
[WhiteElo "2212"]
[BlackElo "2381"]
[WhiteTeam "USA"]
[BlackTeam "LAT"]
[WhiteClock "0:00:10"]
[BlackClock "0:00:07"]

1. d4 {[%clk 0:02:50]}  Nf6 {[%clk 0:02:56]} 2. Bg5 {[%clk 0:02:46]}  Ne4 {[%clk 0:02:55]} 3. Bf4 {[%clk 0:02:46]}  d5 {[%clk 0:02:55]} 4. f3 {[%clk 0:02:46]}  Nf6 {[%clk 0:02:53]} 5. Nc3 {[%clk 0:02:47]}  Bf5 {[%clk 0:02:48]} 6. g4 {[%clk 0:02:44]}  Bg6 {[%clk 0:02:47]} 7. h4 {[%clk 0:02:43]}  h6 {[%clk 0:02:35]} 8. e3 {[%clk 0:02:42]}  e6 {[%clk 0:02:34]} 9. Bd3 {[%clk 0:02:41]}  Bxd3 {[%clk 0:02:34]} 10. Qxd3 {[%clk 0:02:41]}  Bd6 {[%clk 0:02:20]} 11. Nge2 {[%clk 0:02:40]}  Nc6 {[%clk 0:01:56]} 12. O-O-O {[%clk 0:02:22]}  Qe7 {[%clk 0:01:46]} 13. g5 {[%clk 0:02:08]}  Nh5 {[%clk 0:01:35]} 14. gxh6 {[%clk 0:01:58]}  Nxf4 {[%clk 0:01:28]} 15. Nxf4 {[%clk 0:01:55]}  Rxh6 {[%clk 0:01:28]} 16. h5 {[%clk 0:01:49]}  O-O-O {[%clk 0:01:23]} 17. Rdg1 {[%clk 0:01:33]}  Bxf4 {[%clk 0:01:05]} 18. exf4 {[%clk 0:01:31]}  Qf6 {[%clk 0:01:05]} 19. Rg4 {[%clk 0:01:19]}  Nxd4 {[%clk 0:01:01]} 20. Rhg1 {[%clk 0:01:16]}  Rxh5 {[%clk 0:01:00]} 21. Rxg7 {[%clk 0:01:15]}  Qxf4+ {[%clk 0:00:59]} 22. Kb1 {[%clk 0:01:13]}  Nxf3 {[%clk 0:00:41]} 23. Rd1 {[%clk 0:00:43]}  Rdh8 {[%clk 0:00:39]} 24. a3 {[%clk 0:00:28]}  Rh2 {[%clk 0:00:29]} 25. b3 {[%clk 0:00:23]}  Nd2+ {[%clk 0:00:20]} 26. Ka2 {[%clk 0:00:21]}  Qe5 {[%clk 0:00:18]} 27. Rxf7 {[%clk 0:00:17]}  Qg5 {[%clk 0:00:11]} 28. Nb5 {[%clk 0:00:11]}  c6 {[%clk 0:00:07]} 29. Nxa7+ {[%clk 0:00:10]}  Kb8 {[%clk 0:00:07]} 30. Nxc6+ {[%clk 0:00:10]}  bxc6 {[%clk 0:00:07]} 31. Qa6 {[%clk 0:00:10]} 1-0

[Event "January 9 Early 2024"]
[Site "https://www.chess.com"]
[Date "2024.01.11"]
[Round "5"]
[White "Kjartansson, David"]
[Black "Teillet, Benoit"]
[Result "1-0"]
[Board "156"]
[TimeControl "180+1"]
[WhiteFideId "2301130"]
[BlackFideId "616591"]
[WhiteElo "2422"]
[BlackElo "2263"]
[WhiteTeam "ISL"]
[BlackTeam "FRA"]
[WhiteClock "0:00:21"]
[BlackClock "0:00:17"]

1. e4 {[%clk 0:03:00]}  d6 {[%clk 0:02:59]} 2. d4 {[%clk 0:02:58]}  Nf6 {[%clk 0:02:59]} 3. Nc3 {[%clk 0:02:58]}  g6 {[%clk 0:02:59]} 4. f4 {[%clk 0:02:52]}  Bg7 {[%clk 0:02:58]} 5. Nf3 {[%clk 0:02:48]}  O-O {[%clk 0:02:58]} 6. e5 {[%clk 0:02:46]}  dxe5 {[%clk 0:02:57]} 7. fxe5 {[%clk 0:02:45]}  Nd5 {[%clk 0:02:56]} 8. Bc4 {[%clk 0:02:43]}  Nb6 {[%clk 0:02:45]} 9. Bb3 {[%clk 0:02:43]}  Bg4 {[%clk 0:02:41]} 10. Be3 {[%clk 0:02:43]}  e6 {[%clk 0:02:39]} 11. Qd2 {[%clk 0:02:42]}  a5 {[%clk 0:02:33]} 12. a4 {[%clk 0:02:41]}  Na6 {[%clk 0:02:10]} 13. O-O-O {[%clk 0:02:39]}  Nd5 {[%clk 0:02:04]} 14. Nxd5 {[%clk 0:02:37]}  exd5 {[%clk 0:02:04]} 15. Qxa5 {[%clk 0:02:29]}  b6 {[%clk 0:01:48]} 16. Qxd5 {[%clk 0:02:26]}  Qe7 {[%clk 0:01:42]} 17. Qc4 {[%clk 0:02:13]}  h6 {[%clk 0:01:30]} 18. h3 {[%clk 0:02:11]}  Be6 {[%clk 0:01:26]} 19. d5 {[%clk 0:02:09]}  Bf5 {[%clk 0:01:22]} 20. g4 {[%clk 0:02:07]}  Bc8 {[%clk 0:01:16]} 21. Bf4 {[%clk 0:01:56]}  Nc5 {[%clk 0:01:15]} 22. d6 {[%clk 0:01:53]}  cxd6 {[%clk 0:01:05]} 23. exd6 {[%clk 0:01:53]}  Qa7 {[%clk 0:01:05]} 24. Be5 {[%clk 0:01:45]}  Be6 {[%clk 0:01:04]} 25. Qc3 {[%clk 0:01:41]}  Nxb3+ {[%clk 0:01:03]} 26. cxb3 {[%clk 0:01:35]}  Rfc8 {[%clk 0:01:03]} 27. Bxg7 {[%clk 0:01:35]}  Rxc3+ {[%clk 0:01:03]} 28. Bxc3 {[%clk 0:01:36]}  Bxb3 {[%clk 0:01:01]} 29. Rd4 {[%clk 0:01:37]}  Qd7 {[%clk 0:00:58]} 30. Ne5 {[%clk 0:01:35]}  Qe6 {[%clk 0:00:55]} 31. Re1 {[%clk 0:01:33]}  Bxa4 {[%clk 0:00:49]} 32. d7 {[%clk 0:01:21]}  Qb3 {[%clk 0:00:41]} 33. d8=Q+ {[%clk 0:01:12]}  Rxd8 {[%clk 0:00:40]} 34. Rxd8+ {[%clk 0:01:13]}  Kh7 {[%clk 0:00:40]} 35. Kd2 {[%clk 0:00:45]}  Qc2+ {[%clk 0:00:37]} 36. Ke3 {[%clk 0:00:45]}  g5 {[%clk 0:00:35]} 37. Nd3 {[%clk 0:00:35]}  Qg2 {[%clk 0:00:32]} 38. Be5 {[%clk 0:00:23]}  Bc6 {[%clk 0:00:25]} 39. Re2 {[%clk 0:00:20]}  Qf3+ {[%clk 0:00:23]} 40. Kd2 {[%clk 0:00:20]}  h5 {[%clk 0:00:20]} 41. Rf2 {[%clk 0:00:20]}  Qxh3 {[%clk 0:00:19]} 42. Rxf7+ {[%clk 0:00:20]}  Kg6 {[%clk 0:00:19]} 43. Rg7+ {[%clk 0:00:20]}  Kh6 {[%clk 0:00:17]} 44. Rh8# {[%clk 0:00:21]} 1-0

[Event "January 9 Early 2024"]
[Site "https://www.chess.com"]
[Date "2024.01.11"]
[Round "5"]
[White "Chernomordik, Pavel"]
[Black "Kashefi, Amir Hosein"]
[Result "1-0"]
[Board "157"]
[TimeControl "180+1"]
[WhiteFideId "2804530"]
[BlackFideId "12557935"]
[WhiteElo "2454"]
[BlackElo "2604"]
[WhiteTeam "ISR"]
[BlackTeam "IRI"]
[WhiteClock "0:00:22"]
[BlackClock "0:00:01"]

1. e4 {[%clk 0:02:59]}  c6 {[%clk 0:02:36]} 2. Nc3 {[%clk 0:02:58]}  d5 {[%clk 0:02:28]} 3. Nf3 {[%clk 0:02:57]}  dxe4 {[%clk 0:02:27]} 4. Nxe4 {[%clk 0:02:57]}  Nd7 {[%clk 0:02:26]} 5. Qe2 {[%clk 0:02:56]}  Ndf6 {[%clk 0:02:25]} 6. Nc3 {[%clk 0:02:55]}  Bg4 {[%clk 0:02:24]} 7. b3 {[%clk 0:02:49]}  Nd5 {[%clk 0:02:23]} 8. Qe4 {[%clk 0:02:44]}  Ngf6 {[%clk 0:02:22]} 9. Qe2 {[%clk 0:02:35]}  e6 {[%clk 0:02:21]} 10. h3 {[%clk 0:02:32]}  Bh5 {[%clk 0:02:12]} 11. Bb2 {[%clk 0:02:26]}  Qa5 {[%clk 0:02:02]} 12. O-O-O {[%clk 0:02:11]}  Nxc3 {[%clk 0:01:57]} 13. dxc3 {[%clk 0:02:10]}  Qxa2 {[%clk 0:01:56]} 14. g4 {[%clk 0:02:08]}  Bg6 {[%clk 0:01:55]} 15. Nd4 {[%clk 0:01:49]}  Ne4 {[%clk 0:01:36]} 16. Bg2 {[%clk 0:01:42]}  Ba3 {[%clk 0:01:32]} 17. Bxe4 {[%clk 0:01:41]}  Bxb2+ {[%clk 0:01:28]} 18. Kd2 {[%clk 0:01:41]}  Rd8 {[%clk 0:01:22]} 19. Bxg6 {[%clk 0:01:35]}  hxg6 {[%clk 0:01:23]} 20. Ke3 {[%clk 0:01:20]}  Bxc3 {[%clk 0:01:20]} 21. Nxe6 {[%clk 0:01:10]}  Rxd1 {[%clk 0:01:13]} 22. Rxd1 {[%clk 0:01:05]}  Qa5 {[%clk 0:00:51]} 23. Rd8+ {[%clk 0:00:53]}  Ke7 {[%clk 0:00:36]} 24. Rxh8 {[%clk 0:00:52]}  fxe6 {[%clk 0:00:29]} 25. Kf3 {[%clk 0:00:48]}  Qd5+ {[%clk 0:00:27]} 26. Qe4 {[%clk 0:00:48]}  a5 {[%clk 0:00:23]} 27. Rb8 {[%clk 0:00:39]}  b5 {[%clk 0:00:21]} 28. Rb7+ {[%clk 0:00:37]}  Kd6 {[%clk 0:00:21]} 29. Qxd5+ {[%clk 0:00:28]}  exd5 {[%clk 0:00:21]} 30. Kf4 {[%clk 0:00:26]}  Bd4 {[%clk 0:00:15]} 31. Kg5 {[%clk 0:00:23]}  Bxf2 {[%clk 0:00:01]} 32. Rxg7 {[%clk 0:00:22]} 1-0